bitfinex/quotes_ETHUSD_20220213
["timestamp","ask_amount","ask_price","bid_price","bid_amount"]
[1644776403416,0.01083637,2899.4,2899.3,1.0]
[1644776403811,0.01083637,2899.4,2899.3,1.3]
[1644776404011,0.08423935,2899.4,2899.3,1.3]
[1644776404511,0.07340298,2899.4,2899.3,1.3]
[1644776404710,0.0108363,2899.5,2899.3,1.3]
[1644776404911,0.07340298,2899.4,2899.3,2.16252]
[1644776405116,0.07340298,2899.4,2899.3,3.02501]
[1644776405513,0.07340298,2899.4,2899.3,2.72501]
[1644776405712,0.07340298,2899.4,2899.3,1.72501]
[1644776406512,0.07340298,2899.4,2899.2,4.19893469]
[1644776406513,0.07340298,2899.4,2899.2,2.47401469]
[1644776406712,0.00404964,2899.8,2899.2,1.61140469]
[1644776406968,0.0108363,2899.5,2899.2,1.11040469]
[1644776407962,0.86265,2899.6,2899.2,1.11040469]
[1644776408160,0.86666964,2899.5,2899.0,1.2321]
[1644776408361,0.87750587,2899.5,2899.0,1.5321]
[1644776409162,0.86666964,2899.5,2899.0,1.5321]
[1644776409362,0.01083635,2899.4,2899.0,2.46297392]
[1644776409561,0.87349635,2899.4,2899.0,2.46297392]
[1644776409763,0.00404964,2899.3,2899.0,3.46297392]
[1644776409963,0.00404964,2899.3,2898.8,0.86265]
[1644776410267,0.17644964,2899.5,2898.5,0.3]
[1644776410464,0.17644964,2899.5,2898.4,0.32670441]
[1644776410708,0.17644964,2899.5,2898.4,0.02670441]
[1644776410709,0.01083661,2899.2,2898.4,0.02670441]
[1644776410908,0.07341588,2899.1,2898.4,0.02670441]
[1644776411108,0.07341588,2899.1,2898.8,1.11430231]
[1644776411708,0.07341588,2899.1,2898.8,1.00287208]
[1644776411709,0.01083675,2899.1,2898.8,1.00287208]
[1644776412209,0.01083675,2899.1,2898.8,1.86553208]
[1644776412426,0.01488639,2899.1,2898.8,1.86553208]
[1644776412610,0.01488639,2899.1,2898.8,1.00287208]
[1644776412813,0.00404964,2899.3,2898.8,1.00287208]
[1644776413011,0.01083675,2899.1,2898.8,1.60287208]
[1644776413713,0.01488639,2899.1,2898.8,0.6]
[1644776413913,0.00404964,2899.4,2898.8,0.6]
[1644776414113,0.01083675,2899.1,2898.6,3.49771]
[1644776414561,0.01083675,2899.1,2898.7,0.86266]
[1644776414761,0.01083675,2899.1,2898.8,0.99003891]
[1644776414963,0.01083675,2899.1,2898.8,1.85269891]
[1644776415161,1.03912964,2899.6,2898.8,2.15272891]
[1644776415372,1.03912964,2899.6,2898.8,3.45272891]
[1644776415373,0.01083677,2899.1,2898.8,3.45272891]
[1644776415561,0.01083677,2899.1,2898.8,2.45272891]
[1644776415860,0.01083677,2899.1,2898.8,1.46269]
[1644776416264,0.00404964,2899.4,2898.8,1.46269]
[1644776416663,0.01083677,2899.1,2898.8,1.46269]
[1644776417562,0.00404964,2899.4,2898.8,1.46269]
[1644776417765,0.01083677,2899.1,2898.8,1.46269]
[1644776418207,0.01488641,2899.1,2898.8,1.46269]
[1644776418706,0.00404964,2899.1,2898.8,1.46269]
[1644776418906,0.01488641,2899.1,2898.8,1.46269]
[1644776419708,0.01488641,2899.1,2898.8,0.86269]
[1644776419910,0.01488641,2899.1,2898.5,3.43982]
[1644776419911,4.15357852,2899.1,2898.5,1.2134]
[1644776420108,0.86678964,2899.1,2898.5,1.8134]
[1644776420409,0.87762641,2899.1,2898.5,2.8134]
[1644776420808,0.87762641,2899.1,2898.5,1.8134]
[1644776421209,0.86282,2899.0,2898.5,1.5134]
[1644776421408,0.86283,2898.8,2898.4,0.88952441]
[1644776421611,3.4878792,2898.7,2898.4,0.02670441]
[1644776421808,0.01083696,2898.9,2898.4,0.02670441]
[1644776421809,0.1724,2898.6,2898.4,0.02670441]
[1644776422071,0.0148866,2898.9,2898.4,0.02670441]
[1644776422072,0.1724,2898.8,2898.4,0.02670441]
[1644776422269,0.00404964,2898.7,2898.4,0.02670441]
[1644776422467,0.1724,2898.6,2898.4,0.02670441]
[1644776422667,0.18323734,2898.6,2898.4,0.02670441]
[1644776422867,0.87396734,2898.6,2898.4,0.02670441]
[1644776423068,5.22678325,2898.5,2898.4,0.02670441]
[1644776424371,6.16754715,2898.5,2898.4,0.02670441]
[1644776429466,7.03669473,2898.5,2898.4,0.02670441]
[1644776429660,7.03669473,2898.5,2896.9,7.78197879]
[1644776429661,0.01387433,2898.3,2896.9,0.8628]
[1644776429862,1.7265,2897.5,2897.0,1.42238884]
[1644776430060,1.72648,2897.6,2897.0,1.42238884]
[1644776430061,0.07344161,2897.4,2897.0,1.42238884]
[1644776430262,0.07344161,2897.3,2897.0,1.42238884]
[1644776430460,0.07344161,2897.5,2897.0,1.42238884]
[1644776430660,0.07344749,2897.4,2897.0,1.42238884]
[1644776430861,1.72648,2897.6,2897.0,1.42238884]
[1644776430862,0.07344749,2897.3,2897.1,1.07705461]
[1644776431063,1.72648,2897.6,2897.2,1.42238884]
[1644776431261,1.79984721,2897.5,2897.2,1.42238884]
[1644776431462,0.07344721,2897.4,2897.2,1.42238884]
[1644776432061,1.72648,2897.6,2897.1,1.07705461]
[1644776432263,0.86321,2897.4,2897.1,1.07705461]
[1644776433311,0.86321,2897.4,2896.7,1.21434324]
[1644776433513,0.86321,2897.4,2896.9,0.01084078]
[1644776433815,0.86321,2897.4,2897.0,1.42096708]
[1644776434513,0.86321,2897.4,2896.9,0.99108463]
[1644776434713,0.86321,2897.4,2897.0,1.41989131]
[1644776435414,0.86317,2897.5,2897.0,1.41989131]
[1644776435814,3.0623,2897.8,2897.0,1.41989131]
[1644776436015,6.32646015,2897.8,2897.0,1.41989131]
[1644776436213,0.07344745,2897.7,2897.0,1.41989131]
[1644776436417,0.24584745,2897.7,2897.4,1.09901268]
[1644776436613,0.93661745,2897.6,2896.9,0.01084066]
[1644776436816,0.07344745,2897.5,2897.0,1.42073565]
[1644776437073,0.07344745,2897.5,2896.9,0.05420814]
[1644776437464,0.07344745,2897.4,2896.9,0.05420814]
[1644776437666,3.44681406,2897.7,2896.9,0.05420814]
[1644776437966,0.86326,2897.4,2896.7,0.17877324]
[1644776438166,0.07344843,2897.3,2896.7,0.17877324]
[1644776438367,2.58975,2897.5,2896.9,0.0108409]
[1644776438568,0.07345182,2897.4,2896.9,0.0108409]
[1644776439267,0.93670182,2897.4,2896.7,0.17877324]
[1644776439471,0.86325,2897.4,2896.9,0.01084053]
[1644776439869,1.72652,2897.4,2896.9,0.01084053]
[1644776440071,0.86327,2897.4,2896.9,0.01084053]
[1644776440468,0.86327,2897.4,2896.8,0.98191358]
[1644776440711,0.86327,2897.4,2896.9,0.01084052]
[1644776440911,7.40134779,2897.8,2896.9,0.01084052]
[1644776440912,3.0623,2897.8,2896.9,0.01084052]
[1644776441214,0.07344624,2897.7,2897.0,1.71241157]
[1644776441710,0.07344624,2897.7,2897.0,0.3]
[1644776441911,0.07344624,2897.7,2897.3,1.12224523]
[1644776442111,0.93657624,2897.7,2897.3,1.12224523]
[1644776442314,0.86313,2897.7,2897.3,1.12224523]
[1644776443519,0.86313,2897.7,2896.9,2.84170749]
[1644776443716,2.58955,2897.7,2896.9,2.84170749]
[1644776443913,0.86326,2897.5,2896.9,2.84170749]
[1644776444117,0.86326,2897.5,2896.9,2.7875]
[1644776444314,0.86326,2897.5,2896.9,1.79834089]
[1644776444970,0.86323,2897.4,2896.9,1.79834089]
[1644776445171,0.86323,2897.4,2897.0,0.90586901]
[1644776445370,0.86323,2897.4,2897.0,1.0]
[1644776445871,0.86323,2897.4,2896.9,1.79834064]
[1644776446371,0.86323,2897.4,2896.9,1.7875]
[1644776446572,0.86323,2897.4,2896.9,1.79834052]
[1644776447173,0.86323,2897.4,2896.9,2.67986121]
[1644776447373,2.88788941,2897.8,2897.0,1.0]
[1644776447374,6.1580507,2897.8,2897.0,1.0]
[1644776447574,0.0734491,2897.7,2897.0,1.0]
[1644776447773,1.7999991,2897.7,2896.9,1.7875]
[1644776447972,0.0734491,2897.6,2896.9,1.19834053]
[1644776448226,1.16139941,2897.8,2896.9,0.01084053]
[1644776448227,0.2458491,2897.5,2896.9,0.01084053]
[1644776448415,0.0734491,2897.4,2896.9,0.01084053]
[1644776448614,0.86338,2897.2,2896.9,0.01084053]
[1644776448813,0.86338,2897.2,2896.8,0.1724]
[1644776449114,0.86338,2897.2,2896.9,0.01084053]
[1644776449516,1.72674,2897.2,2896.9,0.01084053]
[1644776449716,0.86334,2897.1,2896.9,0.01084053]
[1644776449919,0.86334,2897.1,2896.8,0.1724]
[1644776449920,1.7267,2897.1,2896.8,0.1724]
[1644776450318,1.7267,2897.1,2896.9,0.01084041]
[1644776450921,0.86343,2897.0,2896.9,0.01084041]
[1644776451119,0.86343,2897.0,2896.8,0.1724]
[1644776451320,1.72683,2897.0,2896.8,0.1724]
[1644776451620,0.86343,2897.0,2896.9,0.01084047]
[1644776451824,1.72683,2897.0,2896.9,0.01084047]
[1644776452066,0.86343,2897.0,2896.9,0.01084047]
[1644776452466,0.86343,2897.0,2896.8,0.1724]
[1644776452664,0.86343,2897.0,2896.8,0.18324054]
[1644776453566,0.86343,2897.0,2896.8,0.1724]
[1644776453966,0.86343,2897.0,2896.8,0.1832406]
[1644776454966,1.7268,2897.0,2896.8,0.1724]
[1644776455166,1.7268,2897.0,2896.8,0.01084062]
[1644776455815,0.86343,2897.0,2896.8,0.01084062]
[1644776456017,0.86343,2897.0,2896.7,0.17877324]
[1644776456214,1.89912,2897.4,2896.8,0.01084062]
[1644776456215,0.86326,2897.2,2896.8,0.01084062]
[1644776456816,0.1724,2897.4,2896.8,0.01084062]
[1644776456817,0.07345552,2897.1,2896.8,0.01084062]
[1644776457017,0.1724,2897.4,2896.8,0.01084062]
[1644776457214,0.07345518,2897.3,2896.7,0.17877324]
[1644776457415,0.07345518,2897.3,2896.8,0.87408055]
[1644776457714,0.07345518,2897.3,2896.8,0.01084055]
[1644776458313,0.07345518,2897.3,2896.8,0.97486398]
[1644776458514,0.07345518,2897.2,2896.8,0.96402343]
[1644776458714,0.07345518,2897.2,2896.9,0.01084044]
[1644776458913,0.07345518,2897.1,2896.9,0.0097564]
[1644776459114,0.1724,2897.5,2896.9,0.0097564]
[1644776459314,0.07345629,2897.4,2896.9,0.0097564]
[1644776459568,0.07345629,2897.4,2896.8,0.96276473]
[1644776459569,0.86334,2897.0,2896.8,0.96276473]
[1644776461566,0.86334,2897.0,2896.4,4.54606]
[1644776461767,0.86334,2897.0,2896.5,1.37044537]
[1644776462366,0.86334,2897.0,2896.6,0.01139881]
[1644776462567,0.86334,2897.0,2896.7,1.37044537]
[1644776462768,0.86334,2897.0,2896.7,2.35403687]
[1644776462968,0.07346059,2896.9,2896.7,0.9835915]
[1644776463415,0.93680059,2896.9,2896.7,0.99499009]
[1644776463614,0.07346059,2896.8,2896.7,0.99499009]
[1644776464415,0.07346059,2896.8,2896.7,0.9835915]
[1644776464819,0.07346059,2897.0,2896.7,0.9835915]
[1644776465016,0.07346059,2896.9,2896.7,0.9835915]
[1644776465216,0.07346059,2896.8,2896.7,0.9835915]
[1644776465617,0.07346059,2896.9,2896.7,2.36372101]
[1644776465818,0.07346059,2896.9,2896.7,0.9835915]
[1644776466017,0.07346059,2896.8,2896.7,0.9835915]
[1644776466417,0.07346059,2896.8,2896.6,1.40295646]
[1644776466418,0.86337,2896.8,2896.6,1.40295646]
[1644776466618,0.86337,2896.8,2896.6,0.01139874]
[1644776466619,0.07346059,2896.7,2896.6,0.01139874]
[1644776466819,0.07346059,2896.7,2896.3,13.79872322]
[1644776467071,0.07346059,2896.7,2896.6,0.01139881]
[1644776467072,0.24606059,2896.7,2896.6,0.01139881]
[1644776467470,1.10955059,2896.7,2896.6,0.01139881]
[1644776468069,1.97311059,2896.7,2896.4,1.06659425]
[1644776468269,0.07346059,2896.6,2896.5,0.00424148]
[1644776468670,0.93693059,2896.6,2896.5,0.00424148]
[1644776468872,0.07346059,2896.6,2896.5,1.37920768]
[1644776469071,0.1726,2897.3,2896.5,1.37920768]
[1644776469072,0.07346059,2896.9,2896.5,1.37920768]
[1644776469270,4.5034407,2897.4,2896.4,1.06659425]
[1644776469271,0.07346059,2896.8,2896.6,1.3749662]
[1644776469472,0.07346059,2896.8,2896.4,2.22849425]
[1644776469473,0.83012757,2897.4,2896.7,1.3749662]
[1644776469672,0.86334,2897.2,2896.8,1.3749662]
[1644776469873,0.07601593,2897.1,2896.4,2.23273587]
[1644776470076,0.93935593,2897.1,2896.9,0.85333618]
[1644776470273,0.93939593,2897.0,2896.9,0.85333618]
[1644776470728,0.93939593,2897.0,2896.9,0.86473958]
[1644776471120,0.93939593,2897.0,2896.9,0.0114034]
[1644776471620,0.93939593,2897.0,2896.4,2.1619]
[1644776471821,0.07601593,2896.9,2896.5,1.37586949]
[1644776472020,0.93942593,2896.8,2896.6,0.99018958]
[1644776472220,0.07601593,2896.7,2896.6,0.99018958]
[1644776472626,0.07601593,2896.7,2896.6,2.36601419]
[1644776472822,0.07601593,2896.9,2896.6,2.36601419]
[1644776473022,1.72684,2897.0,2896.7,1.37578843]
[1644776473023,0.07601593,2896.8,2896.7,1.37578843]
[1644776473223,0.93944593,2896.8,2896.7,1.37578843]
[1644776473423,0.93944593,2896.8,2896.6,0.99018958]
[1644776473626,0.07601593,2896.7,2896.6,0.99018958]
[1644776473824,0.07601593,2896.7,2896.6,2.36656476]
[1644776474026,0.07601593,2896.8,2896.6,1.37637518]
[1644776474226,0.07601593,2896.8,2896.5,0.01140391]
[1644776474227,0.07601593,2896.7,2896.5,0.01140391]
[1644776474470,0.93944593,2896.7,2896.5,0.01140391]
[1644776474671,0.07601593,2896.6,2896.5,0.01140391]
[1644776475275,0.07601593,2896.6,2896.3,14.55670501]
[1644776475276,0.07601593,2896.7,2896.3,14.55670501]
[1644776475472,0.93951593,2896.6,2896.4,1.38745664]
[1644776475673,0.93951593,2896.5,2896.4,0.01140405]
[1644776475871,0.93951593,2896.5,2896.4,1.3874484]
[1644776476073,0.07601593,2896.5,2896.4,1.3874484]
[1644776476472,0.7335435,2897.0,2896.4,1.37604435]
[1644776476674,0.86344,2896.6,2896.4,1.37604435]
[1644776476978,0.07601593,2896.5,2896.4,1.37604435]
[1644776477372,3.25245098,2896.9,2896.4,1.37604435]
[1644776477573,0.86348,2896.5,2896.4,1.37604435]
[1644776477778,0.93949593,2896.5,2896.4,1.37604435]
[1644776477973,0.07601593,2896.5,2896.4,1.37604435]
[1644776478230,0.7335435,2897.0,2896.4,1.37604435]
[1644776478416,0.07601593,2896.9,2896.4,1.37604435]
[1644776478617,0.86346,2896.7,2896.4,1.37604435]
[1644776478818,0.07601593,2896.6,2896.4,1.37604435]
[1644776479018,0.07601593,2896.6,2896.5,0.01140391]
[1644776479218,0.86346,2896.9,2896.5,0.01009875]
[1644776479719,1.52098757,2896.9,2896.5,0.01009875]
[1644776479918,0.86346,2896.9,2896.5,0.01009875]
[1644776480119,0.86344,2896.6,2896.3,14.55670501]
[1644776481518,0.86344,2896.6,2896.3,14.56094175]
[1644776481720,0.86344,2896.6,2896.3,14.55770404]
[1644776482266,1.72693,2896.6,2896.3,14.55770404]
[1644776482466,0.86348,2896.5,2896.3,14.5534673]
[1644776482666,0.86348,2896.5,2896.3,14.56810921]
[1644776483567,0.86348,2896.5,2896.3,14.55670501]
[1644776483967,0.86343,2896.6,2896.3,14.56810928]
[1644776484868,0.86343,2896.6,2896.3,14.55670501]
[1644776485068,0.86343,2896.6,2896.3,14.56810921]
[1644776485270,1.72686,2896.9,2896.3,14.56810921]
[1644776485471,0.86341,2897.0,2896.3,14.56810921]
[1644776485472,0.65752757,2897.0,2896.3,14.56810921]
[1644776486215,0.65752757,2897.0,2896.5,0.01140391]
[1644776486615,0.86337,2896.8,2896.5,0.01140391]
[1644776487214,0.86337,2896.8,2896.3,15.42008501]
[1644776487415,0.86337,2896.8,2896.5,0.01140391]
[1644776488417,0.86337,2896.8,2896.3,14.55670501]
[1644776488917,0.86337,2896.8,2896.5,0.01140391]
[1644776488918,0.86344,2896.7,2896.5,0.01140391]
[1644776489117,0.86342,2896.6,2896.5,0.01140391]
[1644776489770,0.86342,2896.6,2896.3,14.55670501]
[1644776489968,0.86342,2896.6,2896.4,0.01140405]
[1644776490972,1.52094757,2896.6,2896.3,13.62632322]
[1644776491169,1.52094757,2896.6,2896.4,0.01140413]
[1644776491370,0.86367,2896.5,2896.4,0.01140413]
[1644776491569,1.69379757,2896.5,2896.4,0.01140413]
[1644776491768,2.55747757,2896.5,2896.4,0.01140413]
[1644776491969,2.55747757,2896.5,2896.3,13.62308551]
[1644776492370,2.55747757,2896.5,2896.3,13.63448971]
[1644776493240,5.79334231,2896.5,2896.3,13.62308551]
[1644776493426,5.62074231,2896.5,2896.3,13.62308551]
[1644776493625,0.86365,2896.4,2896.3,13.63448978]
[1644776494425,4.08703358,2896.4,2896.3,13.62308551]
[1644776494627,0.86365,2896.4,2896.3,13.62308551]
[1644776499167,0.94124215,2896.4,2896.3,13.62308551]
[1644776499367,0.94124215,2896.4,2896.3,12.17702486]
[1644776499969,0.94029929,2896.4,2896.3,12.17702486]
[1644776501024,1.59782686,2896.4,2896.3,12.17702486]
[1644776503120,0.94029929,2896.4,2896.3,12.17702486]
[1644776504121,4.18852509,2896.4,2896.3,12.17702486]
[1644776504322,4.18981353,2896.4,2896.3,12.17702486]
[1644776504576,1.59870779,2896.4,2896.3,12.17702486]
[1644776505574,0.94029929,2896.4,2896.3,12.17702486]
[1644776507375,1.59870779,2896.4,2896.3,12.17702486]
[1644776508827,0.94029929,2896.4,2896.3,12.17702486]
[1644776509031,1.59870779,2896.4,2896.3,12.17702486]
[1644776511227,1.52111564,2896.4,2896.3,12.17702486]
[1644776511428,1.59460099,2896.4,2896.3,12.17702486]
[1644776512467,0.93619249,2896.4,2896.3,12.17702486]
[1644776513274,1.59460099,2896.4,2896.3,12.17702486]
[1644776513879,0.93619249,2896.4,2896.3,12.17702486]
[1644776515742,1.59460099,2896.4,2896.3,12.17702486]
[1644776517045,0.93619249,2896.4,2896.3,12.17702486]
[1644776517246,0.07348535,2896.4,2896.3,14.1683077]
[1644776517442,0.07348535,2896.7,2896.3,15.6693077]
[1644776517644,0.07348535,2896.6,2896.4,1.39332429]
[1644776517844,0.6584085,2896.9,2896.4,2.39332429]
[1644776518044,0.6584085,2896.9,2896.4,1.0]
[1644776518246,0.73189385,2896.9,2896.4,1.0]
[1644776518445,0.07348535,2896.8,2896.5,1.39375395]
[1644776518642,0.07348535,2896.8,2896.5,1.40515786]
[1644776518643,0.93689535,2896.8,2896.5,1.40515786]
[1644776518844,0.07348535,2896.7,2896.5,0.01140391]
[1644776519043,0.07348535,2896.6,2896.5,0.01140391]
[1644776519345,0.07348535,2896.6,2896.5,0.01026352]
[1644776519574,0.73189385,2896.9,2896.5,0.01026352]
[1644776519772,0.07348535,2896.8,2896.4,2.89284949]
[1644776520070,0.07348535,2896.7,2896.5,1.39386803]
[1644776520468,0.07348535,2896.7,2896.4,2.89284949]
[1644776520668,0.07348535,2896.7,2896.5,1.39387628]
[1644776520868,0.07348535,2896.7,2896.4,2.89284949]
[1644776521470,0.07348535,2896.7,2896.5,1.39357822]
[1644776522070,0.10881615,2896.7,2896.5,1.39357822]
[1644776522272,0.07348535,2896.6,2896.4,2.89708518]
[1644776522470,0.07348535,2896.6,2896.5,1.39368579]
[1644776523071,0.10881615,2896.6,2896.5,1.39368579]
[1644776523519,0.10881615,2896.6,2896.4,2.90425374]
[1644776523719,0.07348535,2896.5,2896.4,2.04085374]
[1644776523919,0.07348535,2896.5,2896.4,3.44456893]
[1644776524118,0.10881615,2896.5,2896.4,3.44456893]
[1644776524518,0.10881615,2896.5,2896.4,3.43316468]
[1644776526219,0.10881615,2896.5,2896.4,2.43316468]
[1644776527172,0.10881615,2896.5,2896.4,3.73316468]
[1644776527576,0.10881615,2896.5,2896.4,2.43316468]
[1644776527772,0.10881615,2896.5,2896.4,3.43316468]
[1644776527976,0.10881615,2896.5,2896.4,1.40371519]
[1644776528375,0.10881615,2896.5,2896.3,12.18842906]
[1644776528575,0.10881615,2896.5,2896.4,1.40374625]
[1644776528772,0.10880419,2896.5,2896.4,1.40374625]
[1644776530179,0.97230419,2896.5,2896.3,12.18842906]
[1644776530376,0.07347339,2896.4,2896.3,12.18842906]
[1644776530581,0.07347339,2896.4,2896.3,13.58119284]
[1644776530821,0.07347339,2896.4,2896.3,13.59259711]
[1644776531016,0.07347339,2896.4,2896.3,12.18842913]
[1644776531221,0.10880419,2896.4,2896.3,12.18842913]
[1644776531617,0.10880419,2896.4,2896.3,13.58162436]
[1644776540321,0.10880419,2896.4,2896.3,13.58222796]
[1644776545919,0.10880419,2896.4,2896.3,13.88222796]
[1644776546220,0.10880419,2896.4,2896.3,14.88222796]
[1644776547215,0.0353308,2896.4,2896.3,14.88222796]
[1644776547417,0.0353308,2896.4,2896.3,13.58222796]
[1644776548020,0.1088014,2896.4,2896.3,13.58222796]
[1644776549468,0.10880137,2896.4,2896.3,13.58222796]
[1644776549669,0.0353308,2896.4,2896.3,13.58222796]
[1644776550370,0.97230138,2896.4,2896.3,13.58222796]
[1644776550569,0.97230147,2896.4,2896.3,13.58222796]
[1644776550769,0.0353308,2896.4,2896.3,13.58222796]
[1644776550970,0.10880087,2896.4,2896.3,13.58222796]
[1644776551274,0.0353308,2896.4,2896.3,13.58222796]
[1644776551470,0.10880133,2896.4,2896.3,13.58222796]
[1644776551670,0.0353308,2896.4,2896.3,13.58222796]
[1644776551870,0.10880138,2896.4,2896.3,13.58222796]
[1644776552070,0.8988208,2896.4,2896.3,13.58222796]
[1644776552270,0.10880145,2896.4,2896.3,13.58222796]
[1644776552472,0.0353308,2896.4,2896.3,13.58222796]
[1644776552870,0.10880143,2896.4,2896.3,13.58222796]
[1644776553079,0.0353308,2896.4,2896.3,13.58222796]
[1644776553318,0.8988208,2896.4,2896.3,13.58222796]
[1644776553520,0.97229183,2896.4,2896.3,13.58222796]
[1644776553717,0.10880183,2896.4,2896.3,13.58222796]
[1644776554720,0.10880183,2896.4,2896.3,13.58130937]
[1644776554923,0.10880183,2896.4,2896.3,3.58130937]
[1644776556123,0.97230183,2896.4,2896.3,3.58130937]
[1644776557567,0.97230183,2896.4,2896.3,3.59644686]
[1644776558169,0.97230183,2896.4,2896.3,2.17610627]
[1644776558368,0.97230183,2896.4,2896.3,3.5969713]
[1644776558569,0.97230183,2896.4,2896.3,2.17610627]
[1644776558770,0.97230183,2896.4,2896.3,3.59706083]
[1644776558971,0.97230183,2896.4,2896.3,2.17610627]
[1644776559177,0.97230183,2896.4,2896.3,3.59717722]
[1644776559373,0.97230183,2896.4,2896.3,2.17610627]
[1644776559572,4.20770357,2896.4,2896.3,3.59768994]
[1644776559773,4.20770357,2896.4,2896.3,2.17610627]
[1644776559973,4.20770357,2896.4,2896.2,0.01408419]
[1644776559974,4.75,2896.3,2896.2,0.01408419]
[1644776560176,10.06403446,2896.3,2896.2,0.01084648]
[1644776560375,6.68733103,2896.3,2896.2,0.01084648]
[1644776560575,12.60209996,2896.3,2895.6,0.00323771]
[1644776560821,12.60209996,2896.3,2895.7,0.04339295]
[1644776560822,1.0127703,2895.8,2895.7,0.04339295]
[1644776561022,1.0127703,2895.8,2895.4,0.1726]
[1644776561023,0.1726,2895.7,2895.4,0.16923066]
[1644776561223,0.86393,2895.6,2895.5,0.00327817]
[1644776561422,1.0718608,2895.6,2895.1,0.00327817]
[1644776561623,0.1726,2895.5,2895.1,0.00327817]
[1644776562121,1.03659,2895.5,2895.1,0.00327817]
[1644776562322,2.76455,2895.5,2895.1,1.31456136]
[1644776562525,0.14467704,2895.4,2895.1,1.31456136]
[1644776562825,1.00865704,2895.4,2895.2,0.00327817]
[1644776563025,0.14467704,2895.3,2895.2,0.00327817]
[1644776563421,0.18000784,2895.3,2895.2,0.00327817]
[1644776567478,3.44858181,2895.3,2895.2,0.00327817]
[1644776567878,0.18000784,2895.3,2895.2,0.00327817]
[1644776569623,0.18000784,2895.3,2895.2,1.36075731]
[1644776570020,0.0353308,2895.3,2895.2,0.00327817]
[1644776570619,0.0353308,2895.3,2895.2,1.36075731]
[1644776570820,0.12879324,2895.3,2895.2,0.00327817]
[1644776571419,3.65514318,2895.3,2895.2,0.00327817]
[1644776571620,3.82774318,2895.3,2895.2,0.00327817]
[1644776571820,0.30139324,2895.3,2895.2,0.00327817]
[1644776572075,0.12879324,2895.3,2895.2,0.00327817]
[1644776574572,3.41879324,2895.3,2895.2,0.00327817]
[1644776576719,3.59139324,2895.3,2895.2,0.00327817]
[1644776576919,3.89139324,2895.3,2895.2,0.00327817]
[1644776577519,5.61972324,2895.3,2895.2,0.00327817]
[1644776578325,11.91972324,2895.3,2895.2,0.00327817]
[1644776578823,8.62972324,2895.3,2895.2,0.00327817]
[1644776579222,3.62972324,2895.3,2895.2,0.00327817]
[1644776579484,8.62972324,2895.3,2895.2,0.00327817]
[1644776579886,8.62972324,2895.3,2894.3,0.13819997]
[1644776579887,0.86416,2895.0,2894.3,0.13819997]
[1644776580079,4.4,2895.1,2895.0,2.40744]
[1644776580080,11.30106,2895.1,2895.0,2.40744]
[1644776580286,11.68352647,2895.1,2895.0,2.40744]
[1644776580684,11.71885727,2895.1,2895.0,2.40744]
[1644776581079,1.33992843,2894.9,2894.0,0.8632]
[1644776581280,0.86437,2894.7,2894.5,0.01682328]
[1644776581481,5.25506647,2894.6,2894.5,0.01682328]
[1644776581780,5.25506647,2894.6,2893.2,0.8639]
[1644776581781,4.75,2894.5,2893.2,0.8639]
[1644776582084,0.86442,2894.2,2893.3,0.04263176]
[1644776582280,3.37014207,2894.1,2893.3,0.04263176]
[1644776582483,0.08246647,2894.0,2893.3,0.04263176]
[1644776582679,0.0353308,2894.0,2893.3,0.04263176]
[1644776583080,0.8997008,2894.0,2893.3,0.04263176]
[1644776583318,0.8997008,2894.0,2893.2,0.50653176]
[1644776583921,0.86439,2893.9,2893.2,1.37087176]
[1644776584321,0.86439,2893.9,2893.2,0.50653176]
[1644776584523,2.26217966,2893.9,2893.2,0.50653176]
[1644776584720,0.8997008,2893.9,2893.2,0.50653176]
[1644776585129,4.32069536,2893.9,2893.2,0.50653176]
[1644776585526,0.86438,2893.7,2893.2,0.50653176]
[1644776585724,0.86444,2893.6,2893.2,0.50653176]
[1644776585925,4.46291272,2893.6,2893.2,0.50653176]
[1644776586231,0.0353308,2893.7,2893.4,0.01140842]
[1644776586232,0.3353308,2893.7,2893.4,0.01140842]
[1644776586432,0.09510679,2893.6,2893.4,0.01140842]
[1644776586625,0.0353308,2893.7,2893.4,0.01140842]
[1644776587081,0.0353308,2893.7,2893.2,0.50653176]
[1644776587082,0.86443,2893.5,2893.2,0.50653176]
[1644776587276,0.86443,2893.5,2893.4,0.00419473]
[1644776587776,0.8997608,2893.5,2893.4,0.00419473]
[1644776588273,4.37019998,2893.5,2893.2,0.50653176]
[1644776588473,5.23477998,2893.5,2893.3,0.00419488]
[1644776588673,3.4418634,2893.4,2893.3,0.00419488]
[1644776588876,3.4771942,2893.4,2893.3,0.00419488]
[1644776589278,3.4771942,2893.4,2893.2,0.50653176]
[1644776589673,0.86461,2893.3,2893.2,0.51072678]
[1644776589874,4.74779697,2893.3,2893.2,0.51072678]
[1644776590724,4.74779697,2893.3,2893.2,0.50653176]
[1644776592325,0.0353308,2893.3,2893.2,0.50653176]
[1644776597382,6.172175,2894.4,2893.3,4.75]
[1644776597383,0.138395,2894.4,2893.3,4.75]
[1644776597581,0.1737258,2894.4,2893.5,20.17]
[1644776597779,0.1737258,2894.4,2893.6,0.50427243]
[1644776597979,0.1737258,2894.4,2893.7,0.00327243]
[1644776598229,0.1737258,2894.4,2893.8,0.501]
[1644776598428,0.86422,2894.2,2893.8,0.501]
[1644776598626,0.86422,2894.2,2893.9,0.00327243]
[1644776599024,0.1737258,2894.4,2893.9,0.00327243]
[1644776599226,0.0353308,2894.4,2894.0,0.501]
[1644776599425,0.8994908,2894.4,2894.0,0.501]
[1644776599625,0.8994908,2894.4,2894.1,0.00327243]
[1644776600026,0.04746286,2893.9,2893.7,0.501]
[1644776600225,0.04746286,2893.9,2893.6,1.05964193]
[1644776600932,0.08279366,2893.9,2893.6,1.05964193]
[1644776601724,0.08279366,2893.9,2893.7,0.501]
[1644776601985,0.08279366,2893.9,2893.7,1.36515]
[1644776602972,0.08279366,2893.9,2893.7,1.37656385]
[1644776603773,0.08279366,2893.9,2893.7,1.36515]
[1644776603973,0.08279366,2893.9,2893.7,1.37656385]
[1644776605073,0.08279366,2893.9,2893.7,1.66515]
[1644776605275,0.08279366,2893.9,2893.7,2.67656385]
[1644776605474,0.08279366,2893.9,2893.7,1.37656385]
[1644776605725,0.08279366,2893.9,2893.7,0.51241385]
[1644776606130,0.08279366,2893.9,2893.7,0.501]
[1644776606526,0.08279366,2893.9,2893.7,0.51241385]
[1644776607324,0.08279366,2893.9,2893.7,0.501]
[1644776607726,0.08279366,2893.9,2893.7,0.51241385]
[1644776608527,0.08279366,2893.9,2893.7,0.501]
[1644776608928,0.08279366,2893.9,2893.7,0.51241385]
[1644776609775,0.08279366,2893.9,2893.7,0.501]
[1644776610475,0.08279366,2893.9,2893.7,0.51241385]
[1644776611075,0.08279366,2893.9,2893.7,2.22918]
[1644776611279,0.08279366,2893.9,2893.7,2.24059385]